fUSD/lending_fUSD_20240729
["ID","MTS","AMOUNT","RATE_DAILY","PERIOD"]
[333578138,1722253846621,-500.0,0.00010999,2]
[333578139,1722253846630,-510.05368403,0.00010999,2]
[333578140,1722253846640,-500.0,0.00010999,2]
[333578141,1722253846649,-418.63635183,0.00010999,2]
[333578142,1722253846658,-500.0,0.00010999,2]
[333578143,1722253846668,-533.17294287,0.00010999,2]
[333578144,1722253846677,-423.99509018,0.00010999,2]
[333578145,1722253846686,-500.0,0.00010999,2]
[333578146,1722253846695,-383.63016375,0.00010999,2]
[333578147,1722253846706,-500.0,0.00010999,2]
[333578148,1722253846716,-504.73120578,0.00010999,2]
[333578149,1722253846725,-500.0,0.00010999,2]
[333578150,1722253846734,-502.76741498,0.00010999,2]
[333578151,1722253846743,-500.0,0.00010999,2]
[333578152,1722253846752,-500.0,0.00010999,2]
[333578153,1722253846762,-500.0,0.00010999,2]
[333578154,1722253846771,-500.0,0.00010999,2]
[333578155,1722253846781,-500.0,0.00010999,2]
[333578156,1722253846790,-500.0,0.00010999,2]
[333578157,1722253846799,-500.0,0.00010999,2]
[333578158,1722253846809,-500.0,0.00010999,2]
[333578159,1722253846818,-500.0,0.00010999,2]
[333578160,1722253846827,-500.0,0.00010999,2]
[333578161,1722253846836,-500.0,0.00010999,2]
[333578162,1722253846845,-300.30542728,0.00010999,2]
[333578163,1722253846856,-500.0,0.00010999,2]
[333578164,1722253846865,-500.0,0.00010999,2]
[333578165,1722253846874,-500.0,0.00010999,2]
[333578166,1722253846883,-500.0,0.00010999,2]
[333578167,1722253846893,-500.0,0.00010999,2]
[333578168,1722253846902,-500.0,0.00010999,2]
[333578169,1722253846911,-482.52674819,0.00010999,2]
[333578170,1722253846920,-724.12,0.00010999,2]
[333578171,1722253846930,-724.12,0.00010999,2]
[333578172,1722253846941,-724.12,0.00010999,2]
[333578173,1722253846951,-724.12,0.00010999,2]
[333578174,1722253846960,-724.12,0.00010999,2]
[333578175,1722253846970,-724.12,0.00010999,2]
[333578176,1722253846979,-724.12,0.00010999,2]
[333578177,1722253846990,-724.12,0.00010999,2]
[333578178,1722253847000,-724.12,0.00010999,2]
[333578179,1722253847009,-724.12,0.00010999,2]
[333578180,1722253847020,-724.12,0.00010999,2]
[333578181,1722253847030,-724.12,0.00010999,2]
[333578182,1722253847040,-724.12,0.00010999,2]
[333578183,1722253847049,-724.12,0.00010999,2]
[333578184,1722253847059,-724.12,0.00010999,2]
[333578185,1722253847068,-724.12,0.00010999,2]
[333578186,1722253847077,-724.12,0.00010999,2]
[333578187,1722253847086,-374.07904935,0.00010999,2]
[333578188,1722253847700,-350.04095065,0.00010999,2]
[333578189,1722253847710,-393.31136095,0.00010999,2]
[333578190,1722253847726,-330.80863905,0.00010999,2]
[333578191,1722253847736,-724.12,0.00010999,2]
[333578192,1722253847745,-724.29560228,0.00010999,2]
[333578193,1722253847754,-320.77575867,0.00010999,2]
[333578194,1722253847771,-179.22424133,0.00010999,2]
[333578195,1722253847780,-500.0,0.00010999,2]
[333578196,1722253847789,-500.0,0.00010999,2]
[333578197,1722253847799,-500.0,0.00010999,2]
[333578198,1722253847808,-500.0,0.00010999,2]
[333578199,1722253847817,-500.0,0.00010999,2]
[333578200,1722253847827,-558.02000218,0.00010999,2]
[333578201,1722253847836,-500.0,0.00010999,2]
[333578202,1722253847846,-179.15575649,0.00010999,2]
[333578298,1722255031813,-434.47,8.219e-05,2]
[333578302,1722255031823,-169.54,9.626e-05,2]
[333578305,1722255031834,-250.0,9.629e-05,2]
[333578307,1722255031844,-2000.0,9.629e-05,2]
[333578310,1722255031853,-285.13,9.629e-05,2]
[333578313,1722255031863,-300.0,9.632e-05,2]
[333578316,1722255031873,-5888.98,9.633e-05,2]
[333578319,1722255031882,-1000.0,9.667e-05,2]
[333578322,1722255031891,-324.2605,9.741e-05,2]
[333578325,1722255031901,-1354.03659159,9.741e-05,2]
[333578328,1722255031911,-3800.0,9.741e-05,2]
[333578330,1722255031922,-719.85045155,9.741e-05,2]
[333578332,1722255031933,-308.55186272,9.741e-05,2]
[333578335,1722255031953,-597.34227907,9.741e-05,2]
[333578341,1722255032026,-8524.68051507,9.741e-05,2]
[333578342,1722255032035,-2617.9838,9.89e-05,2]
[333578343,1722255032044,-499.99,9.899e-05,2]
[333578344,1722255032053,-150.0,9.899e-05,2]
[333578345,1722255032062,-3615.84634344,9.9e-05,2]
[333578346,1722255032079,-573.35126456,9.9e-05,2]
[333578377,1722255037926,-341.99163343,9.634e-05,2]
[333578378,1722255037937,-263.43879091,9.634e-05,2]
[333578379,1722255037948,-319.504,9.634e-05,2]
[333578380,1722255037983,-1270.89616337,9.634e-05,2]
[333578391,1722255042530,-1288.76941229,9.634e-05,2]
[333578392,1722255042540,-3756.592292,9.9e-05,2]
[333578393,1722255042549,-500.0,9.9e-05,2]
[333578394,1722255042558,-7689.65,9.9e-05,2]
[333578395,1722255042567,-1300.0,9.9e-05,3]
[333578396,1722255042577,-412.57049425,0.0001,2]
[333578397,1722255042587,-371.5992053,0.0001,2]
[333578399,1722255042596,-3051.9114337,0.0001,3]
[333578400,1722255042606,-1250.0,0.0001,2]
[333578401,1722255042619,-2600.0,0.0001,3]
[333578406,1722255042828,-168.84,0.00010055,2]
[333578407,1722255042838,-900.0,0.00010068,2]
[333578408,1722255042848,-900.0,0.00010068,2]
[333578409,1722255042857,-500.0,0.00010068,2]
[333578410,1722255042867,-9500.0,0.000101,2]
[333578411,1722255042876,-3900.0,0.000101,3]
[333578412,1722255042885,-150.0,0.00010192,2]
[333578413,1722255042895,-529.84,0.00010192,2]
[333578414,1722255042904,-787.21,0.00010192,2]
[333578415,1722255042913,-355.99,0.00010192,2]
[333578416,1722255042923,-355.99,0.00010192,2]
[333578417,1722255042932,-150.0,0.00010192,2]
[333578418,1722255042941,-150.0,0.00010192,2]
[333578419,1722255042950,-355.99,0.00010192,2]
[333578420,1722255042960,-150.0,0.00010192,2]
[333578421,1722255042969,-355.99,0.00010192,2]
[333578422,1722255042978,-150.0,0.00010192,2]
[333578423,1722255042988,-355.99,0.00010192,2]
[333578424,1722255042997,-308.27,0.00010192,2]
[333578425,1722255043007,-5200.0,0.000102,3]
[333578426,1722255043016,-6500.0,0.000103,3]
[333578427,1722255043026,-302.47,0.00010378,2]
[333578428,1722255043035,-1300.0,0.000104,3]
[333578429,1722255043045,-8403.32,0.00010422,2]
[333578430,1722255043053,-412.36458562,0.00010459,2]
[333578431,1722255043113,-22.10541438,0.00010459,2]
[333578432,1722255043122,-1300.0,0.000105,3]
[333578433,1722255043131,-420.0,0.00010595,2]
[333578434,1722255043141,-1300.0,0.000106,3]
[333578435,1722255043151,-1300.0,0.000107,3]
[333578436,1722255043161,-1500.0,0.00010732,2]
[333578437,1722255043170,-848.43279987,0.00010778,2]
[333578438,1722255043218,-236.86877521,0.00010778,2]
[333578439,1722255043228,-25.57750939,0.00010779,2]
[333578444,1722255045593,202.76609266,0.0002,120]
[333578449,1722255045954,-683.89323728,0.00010779,2]
[333578450,1722255045965,-354.2047947,0.00010779,2]
[333578451,1722255045974,-1039.32807676,0.00010779,2]
[333578453,1722255045983,-300.0,0.0001078,2]
[333578454,1722255045993,-1489.0,0.000108,3]
[333578455,1722255046002,-1500.0,0.00010835,2]
[333578457,1722255046011,-187.04901617,0.00010849,2]
[333578459,1722255046021,-181.36236296,0.00010854,2]
[333578461,1722255046030,-187.04901617,0.00010866,2]
[333578463,1722255046040,-181.36236296,0.00010868,2]
[333578465,1722255046049,-181.36236296,0.00010873,2]
[333578467,1722255046058,-1000.0,0.00010875,2]
[333578469,1722255046068,-187.04901617,0.00010877,2]
[333578471,1722255046077,-900.0,0.0001089,2]
[333578472,1722255046086,-900.0,0.0001089,2]
[333578474,1722255046096,-43679.0517,0.00010898,2]
[333578476,1722255046105,-13572.9743,0.00010899,2]
[333578478,1722255046115,-603.0344,0.00010899,2]
[333578480,1722255046124,-2251.7332,0.00010899,2]
[333578482,1722255046133,-166.15722171,0.00010899,2]
[333578483,1722255046143,-305.15815884,0.00010899,2]
[333578484,1722255046152,-305.15815879,0.00010899,2]
[333578485,1722255046162,-305.15815879,0.00010899,2]
[333578486,1722255046171,-305.15815879,0.00010899,2]
[333578487,1722255046180,-305.15815879,0.00010899,2]
[333578488,1722255046189,-305.15815879,0.00010899,2]
[333578489,1722255046199,-166.15722171,0.00010899,2]
[333578490,1722255046209,-305.15815879,0.00010899,2]
[333578491,1722255046218,-305.15815879,0.000109,2]
[333578492,1722255046227,-166.15722171,0.000109,2]
[333578493,1722255046237,-305.15815879,0.000109,2]
[333578494,1722255046246,-1007.0,0.000109,2]
[333578495,1722255046255,-166.15722171,0.000109,2]
[333578496,1722255046264,-168.84536314,0.000109,2]
[333578497,1722255046273,-305.15815879,0.000109,2]
[333578498,1722255046282,-4135.0,0.000109,5]
[333578499,1722255046292,-500.0,0.00010958,2]
[333578500,1722255046301,-500.0,0.00010958,2]
[333578501,1722255046310,-500.0,0.00010958,2]
[333578502,1722255046319,-500.0,0.00010958,2]
[333578503,1722255046328,-500.0,0.00010958,2]
[333578504,1722255046337,-500.0,0.00010958,2]
[333578505,1722255046347,-500.0,0.00010958,2]
[333578506,1722255046356,-500.0,0.00010958,2]
[333578507,1722255046365,-465.58810189,0.00010958,2]
[333578508,1722255046374,-500.0,0.00010958,2]
[333578509,1722255046384,-500.0,0.00010958,2]
[333578510,1722255046393,-500.0,0.00010958,2]
[333578511,1722255046402,-500.0,0.00010958,2]
[333578512,1722255046411,-500.0,0.00010958,2]
[333578513,1722255046420,-231.66572238,0.00010958,2]
[333578514,1722255046430,-500.0,0.00010958,2]
[333578515,1722255046439,-500.0,0.00010958,2]
[333578516,1722255046448,-150.0,0.00010983,2]
[333578517,1722255046458,-150.392,0.00010983,2]
[333578518,1722255046468,-1370.0,0.00010983,2]
[333578519,1722255046477,-863.395,0.00010983,2]
[333578520,1722255046486,-300.0,0.00010986,2]
[333578521,1722255046496,-151.34,0.00010989,2]
[333578522,1722255046505,-151.34,0.0001099,2]
[333578523,1722255046515,-300.0,0.00010997,2]
[333578524,1722255046524,-500.0,0.00010998,2]
[333578525,1722255046533,-500.0,0.00010998,2]
[333578526,1722255046543,-500.0,0.00010998,2]
[333578527,1722255046552,-500.0,0.00010998,2]
[333578528,1722255046561,-500.0,0.00010998,2]
[333578529,1722255046570,-500.0,0.00010998,2]
[333578530,1722255046580,-500.0,0.00010998,2]
[333578531,1722255046590,-500.0,0.00010998,2]
[333578532,1722255046599,-504.06514754,0.00010998,2]
[333578533,1722255046609,-500.0,0.00010998,2]
[333578534,1722255046622,-500.0,0.00010998,2]
[333578535,1722255046631,-500.0,0.00010998,2]
[333578536,1722255046640,-323.36,0.00010998,2]
[333578537,1722255046649,-338.45241706,0.00010998,2]
[333578538,1722255046658,-500.0,0.00010998,2]
[333578539,1722255046668,-221.36,0.00010998,2]
[333578540,1722255046677,-500.0,0.00010998,2]
[333578541,1722255046686,-555.69305609,0.00010998,2]
[333578542,1722255046695,-500.0,0.00010998,2]
[333578543,1722255046704,-500.0,0.00010998,2]
[333578544,1722255046714,-500.0,0.00010998,2]
[333578545,1722255046724,-500.0,0.00010998,2]
[333578546,1722255046733,-500.0,0.00010998,2]
[333578547,1722255046742,-183.56124277,0.00010998,2]
[333578548,1722255046751,-500.0,0.00010998,2]
[333578549,1722255046760,-500.0,0.00010998,2]
[333578550,1722255046769,-500.0,0.00010998,2]
[333578551,1722255046779,-378.33,0.00010998,2]
[333578552,1722255046788,-500.0,0.00010998,2]
[333578553,1722255046797,-500.0,0.00010998,2]
[333578554,1722255046806,-500.0,0.00010998,2]
[333578555,1722255046815,-500.0,0.00010998,2]
[333578556,1722255046824,-500.0,0.00010998,2]
[333578557,1722255046834,-500.0,0.00010998,2]
[333578558,1722255046845,-500.0,0.00010998,2]
[333578559,1722255046854,-500.0,0.00010998,2]
[333578560,1722255046863,-928.3,0.00010998,2]
[333578561,1722255046874,-928.3,0.00010998,2]
[333578562,1722255046883,-534.72,0.00010998,2]
[333578563,1722255046892,-534.72,0.00010998,2]
[333578564,1722255046901,-1209.03,0.00010998,2]
[333578565,1722255046910,-1209.03,0.00010998,2]
[333578566,1722255046920,-500.0,0.00010998,2]
[333578567,1722255046929,-500.0,0.00010998,2]
[333578568,1722255046938,-18163.59103124,0.00010999,2]
[333578569,1722255046950,-5802.96796369,0.00010999,2]
[333578570,1722255046962,-2263.4135711,0.00010999,2]
[333578571,1722255047882,-1028.57603506,0.00010999,2]
[333578671,1722256232092,-457.67,8.219e-05,2]
[333578672,1722256232101,-317.3886,9.674e-05,2]
[333578673,1722256232111,-300.0,9.728e-05,2]
[333578674,1722256232120,-1279.67402451,9.729e-05,2]
[333578675,1722256232136,-453.51,9.729e-05,2]
[333578676,1722256232146,-427.93130052,9.729e-05,2]
[333578677,1722256232158,-1117.28551439,9.729e-05,2]
[333578678,1722256232168,-1356.7482687,9.729e-05,2]
[333578679,1722256232179,-395.67391052,9.729e-05,2]
[333578680,1722256232301,-858.16390953,9.729e-05,2]
[333578681,1722256232313,-283.39033038,9.729e-05,2]
[333578682,1722256232324,-2311.73297556,9.729e-05,2]
[333578683,1722256232334,-933.49206678,9.729e-05,2]
[333578684,1722256232346,-1850.72560984,9.729e-05,2]
[333578685,1722256232357,-2202.92086524,9.729e-05,2]
[333578705,1722256237973,-425.4,9.729e-05,2]
[333578706,1722256238032,-1592.65686539,9.729e-05,2]
[333578707,1722256238043,-602.5968,9.729e-05,2]
[333578708,1722256238055,-952.76755864,9.729e-05,2]
[333578709,1722256238064,-2000.0,9.774e-05,2]
[333578710,1722256238074,-600.0,9.82e-05,2]
[333578711,1722256238083,-250.0,9.88e-05,2]
[333578712,1722256238093,-184.09406241,9.888e-05,2]
[333578713,1722256238102,-400.0,9.927e-05,2]
[333578714,1722256238111,-171.97,9.929e-05,2]
[333578715,1722256238120,-150.0,9.999e-05,2]
[333578716,1722256238132,-371.5992053,0.0001,2]
[333578717,1722256238141,-13329.14210937,0.0001,2]
[333578718,1722256238150,-1666.81,0.0001,2]
[333578719,1722256238160,-700.0,0.00010068,2]
[333578720,1722256238169,-700.0,0.00010068,2]
[333578721,1722256238180,-179.99,0.00010068,2]
[333578722,1722256238189,-499.99,0.00010281,2]
[333578723,1722256238198,-457.67,0.00010464,2]
[333578724,1722256238210,-219.99241863,0.000105,3]
[333578725,1722256238219,-420.0,0.00010701,2]
[333578726,1722256238228,-2151.4055,0.00010758,2]
[333578727,1722256238237,-2500.0,0.00010758,2]
[333578728,1722256238246,-169.46309801,0.0001079,2]
[333578729,1722256238255,-392.95183794,0.0001079,2]
[333578730,1722256238265,-21957.18722,0.000108,2]
[333578731,1722256238274,-392.95183792,0.00010845,2]
[333578732,1722256238283,-169.46309799,0.00010845,2]
[333578733,1722256238292,-655.75369999,0.00010849,2]
[333578734,1722256238301,-154004.61622352,0.00010858,2]
[333578735,1722256238316,-415.15420603,0.00010858,2]
[333578736,1722256238328,-734.89712077,0.00010858,2]
[333578737,1722256238338,-1393.41253977,0.00010858,2]
[333578738,1722256238381,-3700.0,0.00010858,2]
[333578739,1722256238392,-559.7679575,0.00010858,2]
[333578740,1722256238404,-2603.10643675,0.00010858,2]
[333578741,1722256238419,-27760.9389144,0.00010858,2]
[333578899,1722256240061,-6664.00000001,0.00010858,2]
[333578906,1722256240119,-2164.10660125,0.00010858,2]
[333578908,1722256240132,-163.93842499,0.00010859,2]
[333578910,1722256240142,-655.75369999,0.0001086,2]
[333578912,1722256240152,-163.93842499,0.00010861,2]
[333578914,1722256240162,-163.93842499,0.00010866,2]
[333578916,1722256240172,-655.75369999,0.00010866,2]
[333578918,1722256240181,-16287.57541454,0.0001088,2]
[333579238,1722256243100,-158152.8098187,0.0001088,2]
[333579240,1722256243109,-164.45935663,0.00010886,2]
[333579242,1722256243118,-295122.0,0.00010889,2]
[333579244,1722256243128,-700.0,0.0001089,2]
[333579246,1722256243140,-700.0,0.0001089,2]
[333579247,1722256243149,-11711.83208327,0.0001089,2]
[333579249,1722256243159,-10767.7981,0.00010899,2]
[333579251,1722256243168,-165.18250567,0.00010899,2]
[333579253,1722256243177,-282.2224095,0.00010899,2]
[333579255,1722256243186,-282.22240947,0.00010899,2]
[333579257,1722256243195,-282.22240947,0.00010899,2]
[333579259,1722256243204,-282.22240947,0.00010899,2]
[333579261,1722256243213,-282.22240947,0.00010899,2]
[333579263,1722256243222,-282.22240947,0.00010899,2]
[333579265,1722256243231,-282.22240947,0.00010899,2]
[333579267,1722256243240,-282.22240947,0.00010899,2]
[333579269,1722256243249,-282.22240947,0.00010899,2]
[333579271,1722256243259,-452.78543713,0.00010899,2]
[333579273,1722256243268,-452.78543707,0.00010899,2]
[333579275,1722256243277,-452.78543707,0.00010899,2]
[333579277,1722256243286,-452.78543707,0.00010899,2]
[333579279,1722256243295,-452.78543707,0.00010899,2]
[333579281,1722256243304,-452.78543707,0.00010899,2]
[333579283,1722256243312,-452.78543707,0.00010899,2]
[333579285,1722256243321,-452.78543707,0.00010899,2]
[333579287,1722256243331,-452.78543707,0.00010899,2]
[333579288,1722256243340,-392.95183792,0.00010899,2]
[333579290,1722256243349,-1235.0,0.000109,2]
[333579292,1722256243358,-1188.0,0.000109,2]
[333579294,1722256243368,-1188.0,0.000109,2]
[333579296,1722256243377,-1239.9,0.000109,2]
[333579319,1722256243590,-282.22240947,0.000109,2]
[333579321,1722256243599,-169.46309799,0.000109,2]
[333579323,1722256243609,-170.99710766,0.000109,2]
[333579325,1722256243618,-170.99710763,0.000109,2]
[333579327,1722256243627,-170.99710763,0.000109,2]
[333579329,1722256243637,-1000.0,0.000109,2]
[333579331,1722256243647,-170.99710763,0.000109,2]
[333579333,1722256243658,-3217.55388924,0.000109,2]
[333579335,1722256243668,-452.78543707,0.000109,2]
[333579337,1722256243677,-150.21,0.000109,2]
[333579339,1722256243687,-221.03,0.00010904,3]
[333579341,1722256243696,-500.0,0.00010911,2]
[333579343,1722256243705,-500.0,0.00010912,2]
[333579345,1722256243714,-500.0,0.00010912,2]
[333579347,1722256243724,-500.0,0.00010958,2]
[333579348,1722256243733,-401.86937256,0.00010958,2]
[333579350,1722256243742,-221.75945578,0.00010958,2]
[333579352,1722256243752,-208.87327407,0.00010958,2]
[333579354,1722256243762,-247.42,0.00010958,2]
[333579356,1722256243772,-614.52237743,0.00010958,2]
[333579358,1722256243781,-560.63,0.00010958,2]
[333579360,1722256243790,-500.0,0.00010958,2]
[333579362,1722256243800,-379.58855214,0.00010958,2]
[333579364,1722256243809,-525.91,0.00010958,2]
[333579366,1722256243818,-500.0,0.00010958,2]
[333579368,1722256243828,-500.0,0.00010958,2]
[333579370,1722256243837,-341.99163343,0.00010958,2]
[333579372,1722256243847,-500.0,0.00010958,2]
[333579374,1722256243856,-500.0,0.00010958,2]
[333579376,1722256243866,-500.0,0.00010958,2]
[333579378,1722256243876,-500.0,0.00010958,2]
[333579380,1722256243885,-150.0,0.00010958,2]
[333579382,1722256243895,-229.95,0.00010958,2]
[333579384,1722256243904,-500.0,0.00010958,2]
[333579386,1722256243914,-229.36984394,0.00010958,2]
[333579388,1722256243924,-500.0,0.00010958,2]
[333579390,1722256243933,-500.0,0.00010958,2]
[333579392,1722256243942,-500.0,0.00010958,2]
[333579394,1722256243952,-500.0,0.00010958,2]
[333579396,1722256243961,-500.0,0.00010958,2]
[333579398,1722256243971,-500.0,0.00010958,2]
[333579400,1722256243980,-500.0,0.00010958,2]
[333579402,1722256243989,-500.0,0.00010958,2]
[333579404,1722256243998,-500.0,0.00010958,2]
[333579406,1722256244007,-500.0,0.00010958,2]
[333579408,1722256244017,-500.0,0.00010958,2]
[333579409,1722256244026,-628.82278766,0.00010958,2]
[333579412,1722256244036,-500.0,0.00010958,2]
[333579414,1722256244045,-500.0,0.00010958,2]
[333579415,1722256244054,-500.0,0.00010958,2]
[333579417,1722256244063,-173.81,0.00010958,2]
[333579419,1722256244073,-500.0,0.00010958,2]
[333579421,1722256244082,-500.0,0.00010958,2]
[333579423,1722256244091,-500.0,0.00010958,2]
[333579425,1722256244101,-500.0,0.00010958,2]
[333579427,1722256244110,-500.0,0.00010958,2]
[333579429,1722256244120,-500.0,0.00010958,2]
[333579431,1722256244130,-500.0,0.00010958,2]
[333579433,1722256244143,-332.69,0.00010958,2]
[333579435,1722256244152,-500.0,0.00010958,2]
[333579437,1722256244162,-500.0,0.00010958,2]
[333579439,1722256244172,-500.0,0.00010958,2]
[333579442,1722256244182,-1450.92,0.00010958,2]
[333579443,1722256244192,-1450.92,0.00010958,2]
[333579445,1722256244201,-500.0,0.00010958,2]
[333579447,1722256244213,-500.0,0.00010958,2]
[333579449,1722256244222,-500.0,0.00010958,2]
[333579451,1722256244233,-500.0,0.00010958,2]
[333579453,1722256244242,-500.0,0.00010958,2]
[333579455,1722256244251,-500.0,0.00010958,2]
[333579457,1722256244263,-500.0,0.00010958,2]
[333579458,1722256244272,-594.55,0.00010958,2]
[333579459,1722256244281,-500.0,0.00010958,2]
[333579460,1722256244291,-500.0,0.00010958,2]
[333579461,1722256244301,-500.0,0.00010958,2]
[333579462,1722256244311,-500.0,0.00010958,2]
[333579463,1722256244320,-500.0,0.00010958,2]
[333579464,1722256244330,-500.0,0.00010958,2]
[333579465,1722256244339,-645.35,0.00010958,2]
[333579467,1722256244348,-500.0,0.00010958,2]
[333579468,1722256244357,-500.0,0.00010958,2]
[333579470,1722256244367,-500.0,0.00010958,2]
[333579472,1722256244376,-500.0,0.00010958,2]
[333579474,1722256244387,-500.0,0.00010958,2]
[333579476,1722256244396,-500.0,0.00010958,2]
[333579478,1722256244406,-500.0,0.00010958,2]
[333579480,1722256244415,-500.0,0.00010958,2]
[333579482,1722256244424,-509.71309369,0.00010958,2]
[333579484,1722256244434,-620.66290477,0.00010958,2]
[333579486,1722256244443,-500.0,0.00010958,2]
[333579487,1722256244452,-500.0,0.00010958,2]
[333579489,1722256244461,-500.0,0.00010958,2]
[333579491,1722256244471,-246.52664076,0.00010958,2]
[333579493,1722256244480,-500.0,0.00010958,2]
[333579495,1722256244489,-500.0,0.00010958,2]
[333579497,1722256244499,-500.0,0.00010958,2]
[333579499,1722256244509,-500.0,0.00010958,2]
[333579501,1722256244518,-500.0,0.00010958,2]
[333579503,1722256244527,-500.0,0.00010958,2]
[333579504,1722256244537,-500.0,0.00010958,2]
[333579506,1722256244546,-415.3855699,0.00010958,2]
[333579508,1722256244555,-357.68,0.00010958,2]
[333579510,1722256244564,-500.0,0.00010958,2]
[333579512,1722256244574,-500.0,0.00010958,2]
[333579514,1722256244583,-404.99,0.00010958,2]
[333579516,1722256244592,-500.0,0.00010958,2]
[333579518,1722256244602,-500.0,0.00010958,2]
[333579520,1722256244611,-500.0,0.00010958,2]
[333579522,1722256244620,-500.0,0.00010958,2]
[333579524,1722256244630,-500.0,0.00010958,2]
[333579526,1722256244639,-500.0,0.00010958,2]
[333579528,1722256244648,-500.0,0.00010958,2]
[333579530,1722256244657,-500.0,0.00010958,2]
[333579532,1722256244666,-500.0,0.00010958,2]
[333579534,1722256244676,-500.0,0.00010958,2]
[333579535,1722256244685,-500.0,0.00010958,2]
[333579537,1722256244694,-500.0,0.00010958,2]
[333579539,1722256244703,-500.0,0.00010958,2]
[333579541,1722256244712,-500.0,0.00010958,2]
[333579543,1722256244722,-500.0,0.00010958,2]
[333579545,1722256244731,-500.0,0.00010958,2]
[333579546,1722256244740,-500.0,0.00010958,2]
[333579548,1722256244749,-500.0,0.00010958,2]
[333579550,1722256244759,-500.0,0.00010958,2]
[333579552,1722256244768,-500.0,0.00010958,2]
[333579554,1722256244777,-500.0,0.00010958,2]
[333579556,1722256244786,-500.0,0.00010958,2]
[333579558,1722256244796,-501.87468549,0.00010958,2]
[333579559,1722256244805,-500.0,0.00010958,2]
[333579561,1722256244814,-500.0,0.00010958,2]
[333579563,1722256244823,-500.0,0.00010958,2]
[333579565,1722256244833,-500.0,0.00010958,2]
[333579567,1722256244842,-500.0,0.00010958,2]
[333579569,1722256244852,-500.0,0.00010958,2]
[333579571,1722256244861,-500.0,0.00010958,2]
[333579573,1722256244871,-500.0,0.00010958,2]
[333579575,1722256244880,-500.0,0.00010958,2]
[333579577,1722256244890,-500.0,0.00010958,2]
[333579579,1722256244899,-500.0,0.00010958,2]
[333579581,1722256244908,-506.2462514,0.00010958,2]
[333579583,1722256244917,-500.0,0.00010958,2]
[333579584,1722256244926,-500.0,0.00010958,2]
[333579586,1722256244936,-500.0,0.00010958,2]
[333579588,1722256244945,-636.84953145,0.00010958,2]
[333579590,1722256244957,-500.0,0.00010958,2]
[333579591,1722256244966,-500.0,0.00010958,2]
[333579593,1722256244975,-500.0,0.00010958,2]
[333579595,1722256244985,-500.0,0.00010958,2]
[333579597,1722256244994,-500.0,0.00010958,2]
[333579599,1722256245004,-500.0,0.00010958,2]
[333579601,1722256245014,-500.0,0.00010958,2]
[333579603,1722256245023,-500.0,0.00010958,2]
[333579605,1722256245032,-500.0,0.00010958,2]
[333579607,1722256245041,-500.0,0.00010958,2]
[333579609,1722256245051,-248.7444,0.00010958,2]
[333579611,1722256245061,-745.52,0.00010958,2]
[333579613,1722256245070,-500.0,0.00010958,2]
[333579615,1722256245080,-500.0,0.00010958,2]
[333579617,1722256245089,-500.0,0.00010958,2]
[333579619,1722256245098,-500.0,0.00010958,2]
[333579621,1722256245107,-400.579739,0.00010958,2]
[333579623,1722256245116,-500.0,0.00010958,2]
[333579625,1722256245127,-500.0,0.00010958,2]
[333579627,1722256245137,-400.579739,0.00010958,2]
[333579629,1722256245147,-500.0,0.00010958,2]
[333579631,1722256245156,-500.0,0.00010958,2]